fUST/lending_fUST_20250718
["ID","MTS","AMOUNT","RATE_DAILY","PERIOD"]
[373007043,1752840644655,-1029.71219569,0.0002341,2]
[373007045,1752840644664,-207.4,0.00023413,2]
[373007047,1752840644674,-151.0,0.00023413,2]
[373007049,1752840644686,-151.0,0.00023413,2]
[373007051,1752840644696,-3801.642,0.00023413,2]
[373007053,1752840644706,-151.0,0.00023413,2]
[373007055,1752840644716,-151.0,0.00023413,2]
[373007057,1752840644726,-151.0,0.00023413,2]
[373007059,1752840644735,-151.0,0.00023413,2]
[373007061,1752840644745,-184.17851102,0.00023413,2]
[373007063,1752840644755,-151.0,0.00023413,2]
[373007065,1752840644764,-151.0,0.00023413,2]
[373007067,1752840644774,-151.0,0.00023413,2]
[373007069,1752840644783,-159.14388846,0.00023413,2]
[373007071,1752840644793,-151.0,0.00023413,2]
[373007073,1752840644802,-151.0,0.00023413,2]
[373007075,1752840644811,-151.0,0.00023413,2]
[373007077,1752840644820,-151.0,0.00023413,2]
[373007079,1752840644829,-151.0,0.00023413,2]
[373007081,1752840644839,-151.0,0.00023413,2]
[373007083,1752840644848,-151.0,0.00023413,2]
[373007086,1752840644858,-151.0,0.00023413,2]
[373007087,1752840644868,-151.0,0.00023413,2]
[373007089,1752840644877,-151.0,0.00023413,2]
[373007091,1752840644887,-151.0,0.00023413,2]
[373007093,1752840644897,-151.0,0.00023413,2]
[373007095,1752840644906,-151.0,0.00023413,2]
[373007097,1752840644916,-151.0,0.00023413,2]
[373007099,1752840644926,-151.0,0.00023413,2]
[373007101,1752840644937,-151.0,0.00023413,2]
[373007104,1752840644947,-25000.0,0.00023413,2]
[373007106,1752840644956,-151.0,0.00023413,2]
[373007108,1752840644965,-151.0,0.00023413,2]
[373007110,1752840644975,-151.0,0.00023413,2]
[373007111,1752840644985,-151.0,0.00023413,2]
[373007113,1752840644994,-2196.83371422,0.00023413,2]
[373007115,1752840645003,-899.02482109,0.00023417,9]
[373007117,1752840645013,-168.0,0.00023431,2]
[373007119,1752840645022,-2799.01,0.00023437,5]
[373007122,1752840645031,-1084.12738934,0.00023468,2]
[373007143,1752840645226,-460.0,0.00017,2]
[373007145,1752840645236,-2858.17536466,0.00023468,2]
[373007147,1752840645249,-168.0,0.00023518,2]
[373007149,1752840645259,-1662.9171888,0.00023523,2]
[373007151,1752840645269,-2799.01,0.00023537,4]
[373007153,1752840645278,-206.05971096,0.00023562,2]
[373007156,1752840645292,-223.25915804,0.00023562,2]
[373007158,1752840645302,-429.318869,0.00023562,2]
[373007160,1752840645311,-429.318869,0.00023562,2]
[373007161,1752840645322,-429.318869,0.00023562,2]
[373007165,1752840645333,-168.0,0.00023591,2]
[373007167,1752840645342,-206.0,0.0002363,2]
[373007168,1752840645351,-2651.22067346,0.00023637,3]
[373007179,1752840645440,-460.0,0.00017274,2]
[373007181,1752840645450,-206.47642079,0.00017548,2]
[373007185,1752840645475,-253.52357921,0.00017548,2]
[373007187,1752840645485,-460.0,0.00017822,2]
[373007189,1752840645495,-460.0,0.00018096,2]
[373007191,1752840645504,-460.0,0.0001837,2]
[373007193,1752840645513,-460.0,0.00018644,2]
[373007195,1752840645522,-297.35,0.00018918,2]
[373007197,1752840645532,-147.78932654,0.00023637,3]
[373007198,1752840645541,-4433.6886393,0.00023686,2]
[373016883,1752840961265,307.2556602,0.00016292,2]
[373016886,1752841064879,281.6,0.000164,10]
[373016887,1752841137890,199.999999,0.00027,120]
[373016888,1752841552151,-3180.12526202,0.000169,2]
[373016889,1752841630213,-157.55965997,0.00016898,2]
[373016890,1752841630238,-454.29678899,0.00016899,2]
[373016891,1752841630262,-300.0,0.00016899,2]
[373016892,1752841630281,-504.70812096,0.000169,2]
[373016894,1752841653419,292.467413,0.00013699,2]
[373016898,1752841757113,-398.9657013,0.000168,2]
[373016899,1752841757135,-460.0,0.00016899,2]
[373016900,1752841757160,-627.20789733,0.00016899,2]
[373016901,1752841757186,-460.0,0.00016899,2]
[373016902,1752841757207,-460.0,0.00016899,2]
[373016903,1752841757230,-460.0,0.00016899,2]
[373016904,1752841757252,-460.0,0.00016899,2]
[373016905,1752841757273,-146315.16661702,0.000169,2]
[373016906,1752841757299,-1101.79558342,0.000169,2]
[373016907,1752841757322,-465.63,0.00016977,3]
[373016908,1752841757343,-310.42,0.00016978,3]
[373016909,1752841757366,-155.21,0.00016978,3]
[373016910,1752841757387,-252.06,0.00016987,3]
[373016911,1752841757408,-620.84,0.00016987,3]
[373016912,1752841757430,-385.86,0.00016988,3]
[373016913,1752841757454,-827.72,0.00016988,3]
[373016914,1752841757476,-1743.85481527,0.00016997,2]
[373016915,1752841757496,-300.0,0.00016998,2]
[373016916,1752841757518,-1076.0,0.00016998,2]
[373016917,1752841757538,-300.0,0.00016998,2]
[373016918,1752841757718,-300.0,0.00016998,2]
[373016919,1752841757740,-1813.2654599,0.00016999,2]
[373016920,1752841757762,-460.0,0.00016999,2]
[373016921,1752841757783,-460.0,0.00016999,2]
[373016922,1752841757804,-538.01,0.00016999,2]
[373016923,1752841757825,-460.0,0.00016999,2]
[373016924,1752841757848,-460.0,0.00016999,2]
[373016925,1752841757873,-460.0,0.00016999,2]
[373016926,1752841757896,-460.0,0.00016999,2]
[373016927,1752841757919,-460.0,0.00016999,2]
[373016928,1752841757941,-567.68563223,0.00016999,2]
[373016929,1752841757964,-460.0,0.00016999,2]
[373016930,1752841757991,-460.0,0.00016999,2]
[373016931,1752841758021,-460.0,0.00016999,2]
[373016932,1752841758043,-460.0,0.00016999,2]
[373016933,1752841758066,-1774.86,0.00016999,2]
[373016934,1752841758087,-460.0,0.00016999,2]
[373016935,1752841758112,-545.93,0.00016999,2]
[373016936,1752841758134,-460.0,0.00016999,2]
[373016937,1752841758156,-460.0,0.00017,2]
[373016938,1752841758176,-460.0,0.00017,2]
[373016939,1752841758198,-460.0,0.00017,2]
[373016940,1752841758219,-460.0,0.00017,2]
[373016941,1752841758240,-460.0,0.00017,2]
[373016942,1752841758261,-417.15547091,0.00017,2]
[373016943,1752841758288,-460.0,0.00017,2]
[373016944,1752841758308,-460.0,0.00017,2]
[373016945,1752841758328,-480.30618363,0.00017,2]
[373016946,1752841758349,-461.56144325,0.00017,2]
[373016947,1752841758371,-460.0,0.00017,2]
[373016948,1752841758392,-460.0,0.00017,2]
[373016949,1752841758415,-460.0,0.00017,2]
[373016950,1752841758436,-500.0,0.00017,2]
[373016951,1752841758457,-460.0,0.00017,2]
[373016952,1752841758478,-460.0,0.00017,2]
[373016953,1752841758500,-582.38720915,0.00017,2]
[373016954,1752841758522,-460.0,0.00017,2]
[373016955,1752841758544,-460.0,0.00017,2]
[373016956,1752841758571,-460.0,0.00017,2]
[373016957,1752841758592,-484.11,0.00017,2]
[373016958,1752841758615,-460.0,0.00017,2]
[373016959,1752841758650,-460.0,0.00017,2]
[373016960,1752841758676,-460.0,0.00017,2]
[373016961,1752841758700,-532.57,0.00017,2]
[373016962,1752841758722,-460.0,0.00017,2]
[373016963,1752841758745,-460.0,0.00017,2]
[373016964,1752841758768,-460.0,0.00017,2]
[373016965,1752841758790,-460.0,0.00017,2]
[373016966,1752841758814,-460.0,0.00017,2]
[373016967,1752841758837,-460.0,0.00017,2]
[373016968,1752841758862,-460.0,0.00017,2]
[373016969,1752841758886,-460.0,0.00017,2]
[373016970,1752841758912,-499.35,0.00017,2]
[373016971,1752841758935,-460.0,0.00017,2]
[373016972,1752841758958,-334.47,0.00017,2]
[373016973,1752841758982,-706.8,0.00017,2]
[373016974,1752841759008,-763.33,0.00017,2]
[373016975,1752841759035,-460.0,0.00017,2]
[373016976,1752841759058,-460.0,0.00017,2]
[373016977,1752841759079,-460.0,0.00017,2]
[373016978,1752841759101,-460.0,0.00017,2]
[373016979,1752841759128,-460.0,0.00017,2]
[373016980,1752841759150,-460.0,0.00017,2]
[373016981,1752841759173,-460.0,0.00017,2]
[373016982,1752841759206,-460.0,0.00017,2]
[373016983,1752841759228,-460.0,0.00017001,2]
[373016984,1752841759250,-460.0,0.00017001,2]
[373016985,1752841759272,-478.56611906,0.00017001,2]
[373016986,1752841759294,-460.0,0.00017001,2]
[373016987,1752841759317,-460.0,0.00017001,2]
[373016988,1752841759338,-226.8041259,0.00017055,2]
[373016989,1752841759361,-482.18,0.00017173,2]
[373016990,1752841759383,-460.0,0.00017173,2]
[373016991,1752841759409,-1101.79558337,0.0001721,2]
[373016992,1752841759430,-523.94563493,0.00017272,2]
[373016993,1752841759452,-460.0,0.00017272,2]
[373016994,1752841759473,-460.0,0.00017272,2]
[373016995,1752841759496,-460.0,0.00017272,2]
[373016996,1752841759521,-171.44,0.00017272,2]
[373016997,1752841759544,-460.0,0.00017272,2]
[373016998,1752841759571,-478.23633946,0.00017272,2]
[373016999,1752841759592,-460.0,0.00017272,2]
[373017000,1752841759615,-460.0,0.00017272,2]
[373017001,1752841759638,-460.0,0.00017272,2]
[373017002,1752841759661,-460.0,0.00017272,2]
[373017003,1752841759688,-1369.5,0.00017272,2]
[373017004,1752841759712,-460.0,0.00017272,2]
[373017005,1752841759735,-460.0,0.00017272,2]
[373017006,1752841759759,-460.0,0.00017272,2]
[373017007,1752841759782,-460.0,0.00017272,2]
[373017008,1752841759804,-460.0,0.00017273,2]
[373017009,1752841759827,-592.39335856,0.00017273,2]
[373017010,1752841759849,-460.0,0.00017273,2]
[373017011,1752841759872,-460.0,0.00017273,2]
[373017012,1752841759895,-460.0,0.00017273,2]
[373017013,1752841759917,-460.0,0.00017273,2]
[373017014,1752841759939,-1774.86,0.00017273,2]
[373017015,1752841759963,-545.93,0.00017273,2]
[373017016,1752841759986,-460.0,0.00017274,2]
[373017017,1752841760010,-460.0,0.00017274,2]
[373017018,1752841760033,-460.0,0.00017274,2]
[373017019,1752841760056,-460.0,0.00017274,2]
[373017020,1752841760079,-460.0,0.00017274,2]
[373017021,1752841760101,-484.11,0.00017274,2]
[373017022,1752841760126,-478.66,0.00017274,2]
[373017023,1752841760150,-460.0,0.00017274,2]
[373017024,1752841760175,-532.57,0.00017274,2]
[373017025,1752841760198,-496.61,0.00017274,2]
[373017026,1752841760221,-460.0,0.00017274,2]
[373017027,1752841760242,-438.74267402,0.00017274,2]
[373017028,1752841760266,-499.35,0.00017274,2]
[373017029,1752841760288,-706.8,0.00017274,2]
[373017030,1752841760312,-763.33,0.00017274,2]
[373017031,1752841760333,-460.0,0.00017274,2]
[373017032,1752841760356,-460.0,0.00017274,2]
[373017033,1752841760378,-460.0,0.00017274,2]
[373017034,1752841760401,-328.57,0.00017274,2]
[373017035,1752841760424,-460.0,0.00017274,2]
[373017036,1752841760446,-460.0,0.00017274,2]
[373017037,1752841760470,-1101.79558337,0.00017521,2]
[373017038,1752841760492,-460.0,0.00017546,2]
[373017039,1752841760513,-500.0,0.00017546,2]
[373017040,1752841760535,-460.0,0.00017546,2]
[373017041,1752841760558,-194.1,0.00017546,2]
[373017042,1752841760579,-460.0,0.00017546,2]
[373017043,1752841760603,-1369.5,0.00017546,2]
[373017044,1752841760626,-460.0,0.00017546,2]
[373017045,1752841760648,-460.0,0.00017546,2]
[373017046,1752841760669,-460.0,0.00017547,2]
[373017047,1752841760691,-460.0,0.00017547,2]
[373017048,1752841760714,-460.0,0.00017547,2]
[373017049,1752841760735,-460.0,0.00017547,2]
[373017050,1752841760756,-1774.86,0.00017547,2]
[373017051,1752841760778,-545.93,0.00017547,2]
[373017052,1752841760800,-178.44,0.00017548,2]
[373017053,1752841760822,-460.0,0.00017548,2]
[373017054,1752841760844,-484.11,0.00017548,2]
[373017055,1752841760868,-460.0,0.00017548,2]
[373017056,1752841760891,-532.57,0.00017548,2]
[373017057,1752841760915,-460.0,0.00017548,2]
[373017058,1752841760940,-499.35,0.00017548,2]
[373017059,1752841760962,-706.8,0.00017548,2]
[373017060,1752841760986,-763.33,0.00017548,2]
[373017061,1752841761008,-460.0,0.00017548,2]
[373017062,1752841761030,-460.0,0.00017548,2]
[373017063,1752841761173,-1369.5,0.0001782,2]
[373017064,1752841761196,-460.0,0.0001782,2]
[373017065,1752841761219,-460.0,0.0001782,2]
[373017066,1752841761241,-455.97,0.00017821,2]
[373017067,1752841761264,-460.0,0.00017821,2]
[373017068,1752841761287,-460.0,0.00017821,2]
[373017069,1752841761309,-460.0,0.00017821,2]
[373017070,1752841761332,-1774.86,0.00017821,2]
[373017071,1752841761355,-545.93,0.00017821,2]
[373017072,1752841761376,-460.0,0.00017822,2]
[373017073,1752841761396,-484.11,0.00017822,2]
[373017074,1752841761420,-460.0,0.00017822,2]
[373017075,1752841761443,-532.57,0.00017822,2]
[373017076,1752841761468,-460.0,0.00017822,2]
[373017077,1752841761494,-499.35,0.00017822,2]
[373017078,1752841761516,-706.8,0.00017822,2]
[373017079,1752841761539,-763.33,0.00017822,2]
[373017080,1752841761565,-460.0,0.00017822,2]
[373017081,1752841761586,-460.0,0.00017822,2]
[373017082,1752841761613,-1101.79558337,0.00017831,2]
[373017083,1752841761635,-500.0,0.00017917,2]
[373017084,1752841761657,-501.17731979,0.00017917,2]
[373017085,1752841761681,-500.0,0.00017917,2]
[373017086,1752841761702,-500.0,0.00017917,2]
[373017087,1752841761726,-500.0,0.00017917,2]
[373017088,1752841761750,-3222.00339136,0.00018,2]
[373017089,1752841761773,-1369.5,0.00018094,2]
[373017090,1752841761797,-460.0,0.00018094,2]
[373017091,1752841761820,-460.0,0.00018094,2]
[373017092,1752841761843,-460.0,0.00018095,2]
[373017093,1752841761867,-460.0,0.00018095,2]
[373017094,1752841761890,-460.0,0.00018095,2]
[373017095,1752841761913,-1774.86,0.00018095,2]
[373017096,1752841761939,-545.93,0.00018095,2]
[373017097,1752841761962,-460.0,0.00018096,2]
[373017098,1752841761983,-484.11,0.00018096,2]
[373017099,1752841762006,-460.0,0.00018096,2]
[373017100,1752841762028,-532.57,0.00018096,2]
[373017101,1752841762051,-460.0,0.00018096,2]
[373017102,1752841762074,-499.35,0.00018096,2]
[373017103,1752841762096,-706.8,0.00018096,2]
[373017104,1752841762119,-763.33,0.00018096,2]
[373017105,1752841762142,-460.0,0.00018096,2]
[373017106,1752841762166,-460.0,0.00018096,2]
[373017107,1752841762191,-1101.79558337,0.00018141,2]
[373017108,1752841762213,-500.0,0.000182,2]
[373017109,1752841762237,-500.0,0.000182,2]
[373017110,1752841762258,-620.84,0.00018348,3]
[373017111,1752841762280,-310.42,0.00018348,3]
[373017112,1752841762304,-504.12,0.00018357,3]
[373017113,1752841762324,-1241.68,0.00018357,3]
[373017114,1752841762347,-1369.5,0.00018368,2]
[373017115,1752841762372,-460.0,0.00018368,2]
[373017116,1752841762394,-460.0,0.00018368,2]
[373017117,1752841762416,-460.0,0.00018369,2]
[373017118,1752841762437,-335.53,0.00018369,2]
[373017119,1752841762459,-1774.86,0.00018369,2]
[373017120,1752841762484,-545.93,0.00018369,2]
[373017121,1752841762506,-484.11,0.0001837,2]
[373017122,1752841762530,-460.0,0.0001837,2]
[373017123,1752841762555,-532.57,0.0001837,2]
[373017124,1752841762579,-460.0,0.0001837,2]
[373017125,1752841762606,-499.35,0.0001837,2]
[373017126,1752841762633,-706.8,0.0001837,2]
[373017127,1752841762661,-763.33,0.0001837,2]
[373017128,1752841762683,-460.0,0.0001837,2]
[373017129,1752841762704,-460.0,0.0001837,2]
[373017130,1752841762730,-1101.79558337,0.00018452,2]
[373017131,1752841762752,-500.0,0.00018642,2]
[373017132,1752841762775,-1369.5,0.00018642,2]
[373017133,1752841762797,-460.0,0.00018642,2]
[373017134,1752841762819,-460.0,0.00018642,2]
[373017135,1752841762841,-460.0,0.00018643,2]
[373017136,1752841762865,-1774.86,0.00018643,2]
[373017137,1752841762888,-545.93,0.00018643,2]
[373017138,1752841762909,-484.11,0.00018644,2]
[373017139,1752841762932,-460.0,0.00018644,2]
[373017140,1752841762954,-532.57,0.00018644,2]
[373017141,1752841762977,-460.0,0.00018644,2]
[373017142,1752841762999,-499.35,0.00018644,2]
[373017143,1752841763021,-706.8,0.00018644,2]
[373017144,1752841763044,-763.33,0.00018644,2]
[373017145,1752841763066,-460.0,0.00018644,2]
[373017146,1752841763087,-460.0,0.00018644,2]
[373017147,1752841763109,-180.07601105,0.00018748,2]
[373017148,1752841763128,-1000.0,0.00018748,2]
[373017149,1752841763153,-1101.79558337,0.00018762,2]
[373017150,1752841763176,-197.0,0.00018767,3]
[373017151,1752841763200,-2699.3784318,0.000189,2]
[373017152,1752841763221,-5945.3588993,0.00018912,2]
[373017153,1752841763245,-1369.5,0.00018916,2]
[373017154,1752841763267,-460.0,0.00018916,2]
[373017155,1752841763289,-460.0,0.00018916,2]
[373017156,1752841763314,-460.0,0.00018917,2]
[373017157,1752841763337,-1774.86,0.00018917,2]
[373017158,1752841763361,-545.93,0.00018917,2]
[373017159,1752841763382,-484.11,0.00018918,2]
[373017160,1752841763407,-460.0,0.00018918,2]
[373017161,1752841763430,-532.57,0.00018918,2]
[373017162,1752841763453,-460.0,0.00018918,2]
[373017163,1752841763479,-499.35,0.00018918,2]
[373017164,1752841763505,-706.8,0.00018918,2]
[373017165,1752841763530,-763.33,0.00018918,2]
[373017166,1752841763555,-330.5,0.00018918,2]
[373017167,1752841763580,-460.0,0.00018918,2]
[373017168,1752841763607,-1101.79558337,0.00019072,2]
[373017169,1752841763630,-3346.5712059,0.00019178,2]
[373017170,1752841763656,-1369.5,0.0001919,2]
[373017171,1752841763679,-460.0,0.0001919,2]
[373017172,1752841763705,-460.0,0.0001919,2]
[373017173,1752841763734,-460.0,0.00019191,2]
[373017174,1752841763755,-1774.86,0.00019191,2]
[373017175,1752841763778,-545.93,0.00019191,2]
[373017176,1752841763799,-484.11,0.00019192,2]
[373017177,1752841763822,-460.0,0.00019192,2]
[373017178,1752841763844,-532.57,0.00019192,2]
[373017179,1752841763868,-460.0,0.00019192,2]
[373017180,1752841763892,-499.35,0.00019192,2]
[373017181,1752841763914,-706.8,0.00019192,2]
[373017182,1752841763937,-763.33,0.00019192,2]
[373017183,1752841763960,-460.0,0.00019192,2]
[373017184,1752841763981,-160.0,0.000192,2]
[373017185,1752841764004,-600.20592339,0.00019296,2]
[373017186,1752841764030,-1101.79558337,0.00019383,2]
[373017187,1752841764052,-5945.3588993,0.00019404,2]
[373017188,1752841764076,-1369.5,0.00019464,2]
[373017189,1752841764099,-460.0,0.00019464,2]
[373017190,1752841764121,-460.0,0.00019464,2]
[373017191,1752841764144,-460.0,0.00019465,2]
[373017192,1752841764167,-1774.86,0.00019465,2]
[373017193,1752841764194,-545.93,0.00019465,2]
[373017194,1752841764217,-484.11,0.00019466,2]
[373017195,1752841764244,-460.0,0.00019466,2]
[373017196,1752841764272,-532.57,0.00019466,2]
[373017197,1752841764300,-460.0,0.00019466,2]
[373017198,1752841764333,-499.35,0.00019466,2]
[373017199,1752841764356,-706.8,0.00019466,2]
[373017200,1752841764380,-763.33,0.00019466,2]
[373017201,1752841764402,-460.0,0.00019466,2]
[373017202,1752841764424,-5945.3588993,0.00019525,2]
[373017203,1752841764451,-1101.79558337,0.00019693,2]
[373017204,1752841764478,-1369.5,0.00019738,2]
[373017205,1752841764504,-460.0,0.00019738,2]
[373017206,1752841764529,-460.0,0.00019738,2]
[373017207,1752841764556,-1774.86,0.00019739,2]
[373017208,1752841764692,-545.93,0.00019739,2]
[373017209,1752841764716,-484.11,0.0001974,2]
[373017210,1752841764742,-460.0,0.0001974,2]
[373017211,1752841764769,-532.57,0.0001974,2]
[373017212,1752841764794,-460.0,0.0001974,2]
[373017213,1752841764817,-499.35,0.0001974,2]
[373017214,1752841764840,-706.8,0.0001974,2]
[373017215,1752841764865,-763.33,0.0001974,2]
[373017216,1752841764889,-481.6,0.0001974,2]
[373017217,1752841764912,-260.0,0.00019748,2]
[373017218,1752841764933,-4639.54042305,0.0001999,2]
[373017219,1752841764955,-5945.3588993,0.00019993,2]
[373017220,1752841764976,-1000.0,0.0002,2]
[373017221,1752841764997,-160.0,0.0002,3]
[373017222,1752841765018,-6917.40446612,0.0002,2]
[373017223,1752841765044,-1101.79558337,0.00020003,2]
[373017224,1752841765066,-500.0,0.00020009,2]
[373017225,1752841765091,-1369.5,0.00020012,2]
[373017226,1752841765114,-460.0,0.00020012,2]
[373017227,1752841765136,-460.0,0.00020012,2]
[373017228,1752841765159,-1774.86,0.00020013,2]
[373017229,1752841765184,-545.93,0.00020013,2]
[373017230,1752841765207,-484.11,0.00020014,2]
[373017231,1752841765231,-460.0,0.00020014,2]
[373017232,1752841765255,-532.57,0.00020014,2]
[373017233,1752841765280,-460.0,0.00020014,2]
[373017234,1752841765305,-499.35,0.00020014,2]
[373017235,1752841765329,-706.8,0.00020014,2]
[373017236,1752841765353,-763.33,0.00020014,2]
[373017237,1752841765377,-292.467413,0.00020187,2]
[373017238,1752841765399,-5945.3588993,0.00020238,2]
[373017239,1752841765423,-1369.5,0.00020286,2]
[373017240,1752841765449,-272.3178463,0.00020286,2]
[373017241,1752841765472,-460.0,0.00020286,2]
[373017242,1752841765496,-1774.86,0.00020287,2]
[373017243,1752841765522,-545.93,0.00020287,2]
[373017244,1752841765546,-484.11,0.00020288,2]
[373017245,1752841765574,-460.0,0.00020288,2]
[373017246,1752841765598,-532.57,0.00020288,2]
[373017247,1752841765627,-460.0,0.00020288,2]
[373017248,1752841765652,-499.35,0.00020288,2]
[373017249,1752841765674,-706.8,0.00020288,2]
[373017250,1752841765697,-763.33,0.00020288,2]
[373017251,1752841765719,-360.0,0.00020296,2]
[373017252,1752841765744,-1101.79558337,0.00020314,3]
[373017253,1752841765767,-5945.3588993,0.0002047,2]
[373017254,1752841765792,-1369.5,0.0002056,2]
[373017255,1752841765816,-510.13512283,0.0002056,2]
[373017256,1752841765838,-1774.86,0.00020561,2]
[373017257,1752841765866,-545.93,0.00020561,2]
[373017258,1752841765889,-484.11,0.00020562,2]
[373017259,1752841765915,-460.0,0.00020562,2]
[373017260,1752841765939,-532.57,0.00020562,2]
[373017261,1752841765964,-460.0,0.00020562,2]
[373017262,1752841765989,-499.35,0.00020562,2]
[373017263,1752841766012,-706.8,0.00020562,2]
[373017264,1752841766035,-763.33,0.00020562,2]
[373017265,1752841766058,-151.0,0.00020564,2]
[373017266,1752841766079,-151.0,0.00020564,2]
[373017267,1752841766100,-151.0,0.00020564,2]
[373017268,1752841766126,-5945.3588993,0.00020578,2]
[373017269,1752841766151,-1101.79558337,0.00020624,3]
[373017270,1752841766174,-1855.69922054,0.00020704,2]
[373017271,1752841766196,-12610.43989422,0.0002072,2]
[373017272,1752841766217,-160.0,0.0002072,2]
[373017273,1752841766239,-160.0,0.0002072,2]
[373017274,1752841766259,-160.0,0.0002072,2]
[373017275,1752841766280,-160.0,0.0002072,2]
[373017276,1752841766301,-476.25663856,0.0002072,2]
[373017277,1752841766321,-160.0,0.0002072,2]
[373017278,1752841766341,-214.4881157,0.0002072,2]
[373017279,1752841766366,-160.0,0.0002072,2]
[373017280,1752841766387,-525.75194068,0.0002072,2]
[373017281,1752841766408,-160.0,0.0002072,2]
[373017282,1752841766431,-230.89969799,0.0002072,2]
[373017283,1752841766452,-839.30593155,0.0002072,2]
[373017284,1752841766474,-160.0,0.0002072,2]
[373017285,1752841766494,-215.63268315,0.0002072,2]
[373017286,1752841766517,-55635.51773999,0.00020739,2]
[373017310,1752841838184,-612.21,0.00016899,2]
[373017311,1752841838194,-460.0,0.00016899,2]
[373017312,1752841838204,-460.0,0.00016899,2]
[373017313,1752841838213,-177.48005639,0.00016899,2]
[373017314,1752841838223,-460.0,0.00016899,2]
[373017315,1752841838232,-460.0,0.00016899,2]
[373017316,1752841838242,-460.0,0.00016999,2]
[373017317,1752841838251,-300.0,0.00016999,2]
[373017318,1752841838260,-300.0,0.00016999,2]
[373017319,1752841838270,-300.0,0.00016999,2]
[373017320,1752841838279,-300.0,0.00016999,2]
[373017321,1752841838288,-1200.0,0.00016999,2]
[373017322,1752841838298,-460.0,0.00017,2]
[373017323,1752841838308,-460.0,0.00017,2]
[373017324,1752841838318,-460.0,0.00017,2]
[373017325,1752841838328,-460.0,0.00017,2]
[373017326,1752841838337,-460.0,0.00017,2]
[373017327,1752841838346,-460.0,0.00017,2]
[373017328,1752841838355,-460.0,0.00017,2]
[373017329,1752841838365,-460.0,0.00017,2]
[373017330,1752841838375,-460.0,0.00017,2]
[373017331,1752841838384,-467.11744404,0.00017,2]
[373017332,1752841838394,-460.0,0.00017,2]
[373017333,1752841838403,-335.43509946,0.00017,2]
[373017334,1752841838413,-460.0,0.00017,2]
[373017335,1752841838424,-460.0,0.00017,2]
[373017336,1752841838433,-460.0,0.00017,2]
[373017337,1752841838443,-460.0,0.00017,2]
[373017338,1752841838453,-460.0,0.00017,2]
[373017339,1752841838463,-460.0,0.00017,2]
[373017340,1752841838472,-460.0,0.00017,2]
[373017341,1752841838482,-460.0,0.00017,2]
[373017342,1752841838493,-460.0,0.00017,2]
[373017343,1752841838502,-187.28,0.00017,2]
[373017344,1752841838512,-460.0,0.00017,2]
[373017345,1752841838522,-612.21,0.00017173,2]
[373017346,1752841838532,-460.0,0.00017173,2]
[373017347,1752841838542,-460.0,0.00017272,2]
[373017348,1752841838552,-460.0,0.00017272,2]